bitfinex-derivatives/quotes_SOLF0:USTF0_20241217
["timestamp","ask_amount","ask_price","bid_price","bid_amount"]
[1734464720462,2.4,228.81,228.71,2.4]
[1734464720662,37.97379187,228.83,228.75,2.1856]
[1734464720860,37.97379187,228.83,228.71,2.4]
[1734464721062,40.15869187,228.83,228.73,9.09787916]
[1734464721368,9.09787916,228.88,228.73,9.09787916]
[1734464721663,4.3382,228.9,228.76,9.09787916]
[1734464721865,4.3382,228.9,228.77,2.4]
[1734464721866,13.64897594,228.9,228.77,2.4]
[1734464722061,6.7382,228.9,228.77,2.4]
[1734464722668,4.3382,228.9,228.77,2.4]
[1734464722868,9.52884255,228.9,228.77,2.4]
[1734464723168,2.1845,228.87,228.79,2.1852]
[1734464723665,9.52884255,228.9,228.79,2.1852]
[1734464723867,2.1846,228.86,228.79,4.5852]
[1734464724372,4.3382,228.9,228.79,2.4]
[1734464724567,2.1845,228.87,228.8,2.1851]
[1734464724766,4.3382,228.9,228.79,2.4]
[1734464725072,2.1846,228.86,228.79,2.4]
[1734464725272,4.3382,228.9,228.79,2.4]
[1734464725469,2.8964,228.9,228.79,11.49787916]
[1734464725670,9.09787916,228.91,228.79,11.49787916]
[1734464725671,2.1841,228.91,228.84,2.1848]
[1734464725870,9.09787916,228.94,228.84,2.4]
[1734464726765,9.09787916,228.97,228.84,2.4]
[1734464726964,2.1839,228.94,228.87,2.1845]
[1734464727169,9.09787916,228.97,228.84,2.4]
[1734464727768,2.1838,228.95,228.88,2.1844]
[1734464727964,9.09787916,228.94,228.83,3.8979]
[1734464729070,9.09787916,228.94,228.83,2.4]
[1734464729477,2.1843,228.9,228.83,2.4]
[1734464729678,9.09787916,228.94,228.83,2.4]
[1734464730176,11.49787916,228.94,228.83,2.4]
[1734464730375,2.1843,228.9,228.83,4.5849]
[1734464730980,9.09787916,228.91,228.79,14.47132676]
[1734464731175,9.09787916,228.91,228.8,2.4]
[1734464731481,9.09787916,228.91,228.79,7.7734476]
[1734464731679,9.09787916,228.91,228.79,9.9586476]
[1734464731879,9.09787916,228.91,228.79,7.7734476]
[1734464732080,2.1846,228.87,228.79,9.9586476]
[1734464732281,9.09787916,228.91,228.79,9.9586476]
[1734464732781,2.1846,228.86,228.79,9.9586476]
[1734464733274,2.1846,228.86,228.79,7.5586476]
[1734464734675,9.09787916,228.88,228.73,9.09787916]
[1734464734878,9.09787916,228.85,228.7,10.57187916]
[1734464735181,2.9424,228.87,228.7,10.57187916]
[1734464735182,9.09787916,228.82,228.71,2.4]
[1734464735381,2.1855,228.77,228.71,2.4]
[1734464735579,9.09787916,228.82,228.71,2.4]
[1734464735785,2.1858,228.74,228.67,11.28417916]
[1734464736079,9.09787916,228.79,228.67,2.4]
[1734464736385,2.4,228.78,228.67,2.4]
[1734464736582,3.9264,228.78,228.67,2.4]
[1734464736780,9.09787916,228.76,228.61,9.09787916]
[1734464737081,9.09787916,228.76,228.6,9.09787916]
[1734464737276,9.09787916,228.76,228.61,2.4]
[1734464738489,2.1861,228.71,228.64,2.1867]
[1734464738683,9.09787916,228.76,228.61,2.4]
[1734464739180,2.1861,228.7,228.63,2.1868]
[1734464739382,2.4,228.72,228.6,14.25506452]
[1734464739579,2.1865,228.66,228.6,5.15718536]
[1734464739781,2.1865,228.66,228.6,7.55718536]
[1734464740081,2.1864,228.68,228.6,7.34418536]
[1734464740384,9.09787916,228.73,228.6,5.15718536]
[1734464740678,2.187,228.61,228.52,5.2483]
[1734464740887,9.09787916,228.61,228.5,17.97542429]
[1734464741076,11.49787916,228.61,228.5,17.97542429]
[1734464741277,2.1878,228.53,228.5,17.97542429]
[1734464742280,9.09787916,228.52,228.51,30.86577286]
[1734464742486,2.1882,228.48,228.38,11.28697916]
[1734464742687,9.09787916,228.49,228.38,2.4]
[1734464743074,2.1884,228.47,228.37,1.5187]
[1734464743780,2.1884,228.47,228.38,5.14233128]
[1734464745283,2.1886,228.44,228.37,1.5187]
[1734464745478,9.09787916,228.45,228.34,2.8603]
[1734464745687,9.09787916,228.45,228.32,9.09787916]
[1734464745881,9.09787916,228.45,228.32,2.4]
[1734464746087,9.09787916,228.42,228.32,5.2387275]
[1734464746388,11.49787916,228.42,228.32,5.2387275]
[1734464746588,13.68677916,228.42,228.32,5.2387275]
[1734464747487,13.68677916,228.42,228.32,7.4284275]
[1734464748292,2.189,228.4,228.32,5.2387275]
[1734464748882,11.49787916,228.42,228.29,2.19]
[1734464749088,9.09787916,228.39,228.27,2.4]
[1734464750191,2.1894,228.36,228.26,15.64277916]
[1734464750391,9.09787916,228.39,228.26,6.7546]
[1734464750591,9.09787916,228.33,228.21,2.4]
[1734464750791,11.49787916,228.33,228.2,2.4]
[1734464750993,11.49787916,228.33,228.19,11.49787916]
[1734464751499,9.09787916,228.4,228.25,9.09787916]
[1734464751797,2.4,228.41,228.28,9.09787916]
[1734464752093,2.4,228.41,228.29,3.8265]
[1734464752292,4.5889,228.41,228.31,2.1898]
[1734464752494,4.5889,228.41,228.29,3.8265]
[1734464752495,2.4,228.41,228.29,3.8265]
[1734464752797,9.09787916,228.4,228.29,1.4265]
[1734464753190,9.09787916,228.37,228.26,5.2444]
[1734464753393,2.1898,228.32,228.26,1.4022]
[1734464754895,2.1898,228.32,228.22,12.92437916]
[1734464754896,2.19,228.3,228.22,3.8265]
[1734464755090,9.09787916,228.34,228.22,3.8265]
[1734464755893,2.4,228.33,228.22,3.8265]
[1734464756087,2.4,228.34,228.22,12.92437916]
[1734464756489,9.09787916,228.37,228.28,2.1901]
[1734464757395,2.1894,228.36,228.28,2.1901]
[1734464758096,9.09787916,228.37,228.22,12.92437916]
[1734464758396,2.4,228.38,228.25,9.09787916]
[1734464758602,2.4,228.38,228.26,1.4454]
[1734464758799,2.4,228.38,228.27,2.4]
[1734464758996,2.4,228.38,228.27,3.9318]
[1734464759396,2.4,228.38,228.31,2.1898]
[1734464760104,4.5892,228.38,228.31,2.1898]
[1734464760395,50.08,228.52,228.28,9.09787916]
[1734464760599,50.08,228.52,228.27,3.9318]
[1734464760600,9.09787916,228.47,228.34,9.09787916]
[1734464760796,9.09787916,228.47,228.35,3.9389]
[1734464760993,9.09787916,228.47,228.35,1.5389]
[1734464760994,9.09787916,228.41,228.35,1.5389]
[1734464761398,9.09787916,228.41,228.31,2.4]
[1734464761593,2.1891,228.4,228.32,2.1897]
[1734464763494,9.09787916,228.41,228.31,4.5898]
[1734464763495,2.1891,228.39,228.31,4.5898]
[1734464763696,9.09787916,228.38,228.28,1.4113]
[1734464764004,2.4,228.42,228.29,2.1899]
[1734464764005,2.1894,228.37,228.29,2.1899]
[1734464764599,2.1894,228.37,228.28,3.8113]
[1734464764600,2.1894,228.37,228.3,2.1899]
[1734464765104,2.1894,228.37,228.29,2.19]
[1734464766699,2.1896,228.34,228.28,3.8113]
[1734464767405,2.4,228.39,228.28,3.8113]
[1734464767604,2.4,228.39,228.28,6.0014]
[1734464767605,2.1894,228.36,228.28,6.0014]
[1734464767900,2.4,228.39,228.28,6.0014]
[1734464768296,2.4,228.39,228.26,1.4454]
[1734464768297,2.1897,228.33,228.26,2.1903]
[1734464768703,14.59818197,228.36,228.23,2.4]
[1734464769400,2.1898,228.32,228.25,2.1904]
[1734464770599,14.59818197,228.36,228.23,5.3574]
[1734464770806,2.4,228.37,228.23,6.8448]
[1734464770998,2.4,228.38,228.23,6.8448]
[1734464771307,16.99818197,228.4,228.23,6.8448]
[1734464771811,16.99818197,228.4,228.28,2.19]
[1734464772305,2.1895,228.35,228.28,2.19]
[1734464772697,16.99818197,228.4,228.28,2.19]
[1734464772897,2.1896,228.34,228.28,2.19]
[1734464773101,14.59818197,228.36,228.27,2.1902]
[1734464773500,2.1899,228.31,228.23,4.4448]
[1734464773807,2.4,228.35,228.23,4.4448]
[1734464773808,14.59818197,228.32,228.23,2.9574]
[1734464774203,2.1902,228.28,228.23,2.9574]
[1734464774503,14.59818197,228.32,228.23,2.9574]
[1734464774803,14.59818197,228.32,228.22,0.17795]
[1734464775308,2.1903,228.27,228.22,0.17795]
[1734464775501,2.4,228.29,228.22,0.17795]
[1734464775703,2.1906,228.24,228.22,0.17795]
[1734464775902,14.59818197,228.28,228.22,0.17795]
[1734464776099,14.59818197,228.24,228.22,0.17795]
[1734464776302,2.4,228.23,228.22,0.17795]
[1734464776511,2.4,228.23,228.11,2.4]
[1734464777107,2.1911,228.18,228.11,2.4]
[1734464777309,2.1911,228.18,228.09,1.5438]
[1734464777512,2.4,228.23,228.1,2.1919]
[1734464777712,14.59818197,228.2,228.08,29.1684312]
[1734464778207,14.59818197,228.2,228.08,5.20119882]
[1734464778608,14.59818197,228.2,228.07,2.8598]
[1734464778803,14.59818197,228.16,228.07,2.8598]
[1734464779002,16.99818197,228.16,228.07,2.8598]
[1734464780216,16.99818197,228.16,228.04,1.5438]
[1734464780510,16.99818197,228.16,228.0,5.3298]
[1734464781213,16.99818197,228.16,228.07,2.1921]
[1734464781510,16.99818197,228.16,228.0,5.3298]
[1734464781909,2.1915,228.14,228.0,5.3298]
[1734464783212,7.72590479,228.15,228.0,5.3298]
[1734464783413,2.1916,228.13,228.05,2.1923]
[1734464784307,2.1917,228.12,228.05,2.1923]
[1734464784911,2.1917,228.12,228.03,2.1924]
[1734464785105,2.1917,228.12,228.0,5.3298]
[1734464785310,7.72590479,228.15,228.0,5.3298]
[1734464785513,2.1915,228.14,228.06,2.1922]
[1734464786011,11.33352565,228.14,228.06,2.1922]
[1734464786515,9.14202565,228.17,228.05,2.4]
[1734464786713,9.14202565,228.2,228.05,2.4]
[1734464787014,9.14202565,228.2,228.06,9.14202565]
[1734464787224,9.14202565,228.2,228.1,2.1918]
[1734464787410,9.14202565,228.2,228.11,6.7806]
[1734464787611,9.14202565,228.2,228.11,4.3806]
[1734464787808,2.1913,228.16,228.11,4.3806]
[1734464788814,7.68172721,228.23,228.11,2.977]
[1734464788815,9.14202565,228.17,228.11,2.977]
[1734464789017,9.14202565,228.14,228.09,2.4]
[1734464789210,9.14202565,228.14,228.05,3.8755]
[1734464789411,2.1916,228.13,228.06,2.1922]
[1734464789709,2.1916,228.13,228.05,3.8755]
[1734464790414,11.33352565,228.14,228.05,3.8755]
[1734464790820,9.14202565,228.14,228.06,2.1922]
[1734464791016,9.14202565,228.14,228.05,3.8755]
[1734464791422,9.14202565,228.14,228.04,2.8447]
[1734464791423,9.14202565,228.08,228.04,2.8447]
[1734464792529,11.33412565,228.08,228.04,2.8447]
[1734464792923,2.4,228.13,228.04,2.8447]
[1734464793224,2.1917,228.12,228.06,2.1922]
[1734464793623,4.5916,228.13,228.06,2.1922]
[1734464793824,9.14202565,228.14,228.04,5.2447]
[1734464794217,11.33352565,228.14,228.04,5.2447]
[1734464794423,9.14202565,228.14,228.07,2.1921]
[1734464794820,11.33352565,228.14,228.07,2.1921]
[1734464795025,9.14202565,228.14,228.04,5.2447]
[1734464795519,2.1918,228.11,228.05,2.1923]
[1734464795717,9.14202565,228.14,228.04,5.2447]
[1734464796127,2.1916,228.13,228.08,2.192]
[1734464796320,9.14202565,228.14,228.08,2.192]
[1734464796525,9.14202565,228.14,228.04,5.2447]
[1734464797229,2.1917,228.12,228.06,2.1922]
[1734464798021,2.4,228.17,228.0,5.23071522]
[1734464798022,2.1922,228.07,228.0,5.23071522]
[1734464798220,9.14202565,228.11,228.0,5.23071522]
[1734464798425,9.14202565,228.11,228.0,7.63071522]
[1734464798821,2.1922,228.06,228.0,5.23071522]
[1734464799229,9.14202565,228.11,228.0,5.23071522]
[1734464799427,9.14202565,228.11,227.99,5.4022]
[1734464800632,2.1922,228.07,228.01,2.1927]
[1734464801926,11.33412565,228.08,228.02,2.1926]
[1734464802126,9.14202565,228.08,227.99,5.4022]
[1734464802421,2.4,228.16,228.03,9.14202565]
[1734464802622,9.14202565,228.17,228.04,2.4]
[1734464803132,2.1914,228.15,228.09,2.1919]
[1734464804022,2.1914,228.15,228.04,2.4]
[1734464804023,9.14202565,228.17,228.04,2.4]
[1734464804427,11.33322565,228.17,228.1,2.1918]
[1734464804625,11.33322565,228.17,228.04,2.4]
[1734464804827,11.33322565,228.17,228.04,26.42125098]
[1734464805031,9.14202565,228.17,228.04,26.42125098]
[1734464805228,9.14202565,228.17,228.1,2.1918]
[1734464805429,9.14202565,228.17,228.04,2.4]
[1734464805830,2.1915,228.14,228.08,2.192]
[1734464807736,2.1915,228.14,228.09,2.1919]
[1734464808037,2.1914,228.16,228.06,2.4]
[1734464808235,9.14202565,228.17,228.12,2.1916]
[1734464808543,9.14202565,228.17,228.06,2.4]
[1734464808836,9.14202565,228.2,228.06,328.96533022]
[1734464809135,9.14202565,228.17,228.07,2.4]
[1734464809438,2.1916,228.14,228.08,4.592]
[1734464811643,2.1914,228.15,228.09,2.1919]
[1734464811931,9.14202565,228.17,228.02,257.81815135]
[1734464812126,2.1915,228.14,228.08,2.1921]
[1734464814638,9.14202565,228.17,228.02,9.14202565]
[1734464814845,9.14202565,228.17,228.03,2.4]
[1734464815046,2.1919,228.11,228.05,2.1923]
[1734464817445,2.1917,228.12,228.06,2.1922]
[1734464817644,9.14202565,228.17,228.05,2.4]
[1734464818344,2.1916,228.13,228.05,2.4]
[1734464819244,2.1915,228.15,228.05,11.54202565]
[1734464819548,9.14202565,228.21,228.05,11.54202565]
[1734464819754,2.191,228.2,228.13,2.1915]
[1734464820051,9.14202565,228.21,228.13,2.1915]
[1734464820550,9.14202565,228.21,228.1,2.4]
[1734464820849,9.14202565,228.21,228.11,2.8653]
[1734464821245,11.33292565,228.21,228.14,2.1914]
[1734464821948,2.1909,228.2,228.14,2.1914]
[1734464825747,9.14202565,228.21,228.11,2.8653]
[1734464825748,9.14202565,228.21,228.16,2.1913]
[1734464826052,2.1907,228.22,228.16,2.1913]
[1734464826550,2.1908,228.21,228.15,2.1914]
[1734464828144,9.14202565,228.24,228.15,2.1914]
[1734464828346,9.14202565,228.21,228.11,10.64466479]
[1734464828755,9.14202565,228.21,228.11,12.83636479]
[1734464828756,2.1913,228.17,228.11,12.83636479]
[1734464828946,2.1913,228.17,228.11,10.64466479]
[1734464829351,2.1913,228.17,228.11,8.24466479]
[1734464829546,2.1913,228.16,228.11,5.057]
[1734464829852,2.1913,228.16,228.11,1.4344]
[1734464830048,9.14202565,228.15,228.07,2.1921]
[1734464830253,9.14202565,228.15,228.06,3.89]
[1734464831154,9.14202565,228.15,228.06,1.49]
[1734464831348,9.14202565,228.18,228.06,1.49]
[1734464831551,6.9570493,228.17,228.06,1.49]
[1734464831855,2.1912,228.18,228.06,1.49]
[1734464832055,2.191,228.19,228.06,1.49]
[1734464832451,2.4,228.2,228.06,1.49]
[1734464832649,9.14202565,228.18,228.06,1.49]
[1734464832947,7.6041466,228.24,228.08,9.14202565]
[1734464833146,2.1909,228.2,228.14,2.1914]
[1734464833355,9.14202565,228.23,228.1,1.4174]
[1734464835260,9.14202565,228.16,228.06,585.13676866]
[1734464835457,9.14202565,228.16,228.06,587.53676866]
[1734464835654,2.1917,228.12,228.07,2.1921]
[1734464835958,9.14202565,228.16,228.06,3.89]
[1734464837354,9.14202565,228.19,228.06,3.89]
[1734464837558,11.54202565,228.22,228.06,3.89]
[1734464837761,11.54202565,228.22,228.13,2.1915]
[1734464839165,9.14202565,228.19,228.12,2.4]
[1734464839467,9.14202565,228.19,228.08,2.4]
[1734464839762,9.14202565,228.16,228.06,3.89]
[1734464839963,2.1914,228.15,228.09,2.1919]
[1734464840164,2.1914,228.15,228.06,3.89]
[1734464840463,2.1915,228.14,228.09,2.1919]
[1734464841164,9.14202565,228.16,228.06,3.89]
[1734464841364,2.1916,228.13,228.08,2.192]
[1734464841568,9.14202565,228.16,228.06,3.89]
[1734464841864,9.14202565,228.22,228.15,2.1913]
[1734464842659,2.191,228.19,228.12,2.4]
[1734464844268,2.191,228.19,228.13,2.1915]
[1734464846267,9.14202565,228.19,228.11,2.4]
[1734464846863,9.14202565,228.16,228.06,355.92056121]
[1734464847063,9.14202565,228.16,228.06,9.04249398]
[1734464847266,9.14202565,228.16,228.06,6.0822]
[1734464847967,9.14202565,228.16,228.06,3.6822]
[1734464848974,2.1916,228.13,228.06,3.6822]
[1734464849570,9.14202565,228.16,228.06,3.6822]
[1734464849773,2.1917,228.12,228.07,2.1921]
[1734464851965,9.14202565,228.16,228.06,1.49]
[1734464852567,2.4,228.19,228.06,1.49]
[1734464852568,9.14202565,228.19,228.06,1.49]
[1734464853272,2.1912,228.18,228.12,2.1917]
[1734464855773,2.1912,228.18,228.13,2.1915]
[1734464857070,2.1912,228.18,228.12,2.1917]
[1734464857774,9.14202565,228.19,228.11,2.4]
[1734464858269,9.14202565,228.19,228.07,2.4]
[1734464858472,2.1914,228.15,228.1,2.1919]
[1734464858670,9.14202565,228.19,228.1,2.1919]
[1734464859074,2.1911,228.18,228.12,2.1916]
[1734464859275,9.14202565,228.19,228.07,2.4]
[1734464859772,9.14202565,228.19,228.14,2.1914]
[1734464860370,11.33302565,228.19,228.14,2.1914]
[1734464861274,11.33302565,228.19,228.13,2.1916]
[1734464862673,9.14202565,228.19,228.06,360.84497138]
[1734464862871,9.14202565,228.19,228.08,2.4]
[1734464863072,9.14202565,228.19,228.06,184.23259866]
[1734464863073,2.4,228.18,228.06,1.49]
[1734464863874,9.14202565,228.16,228.06,1.49]
[1734464864073,9.14202565,228.16,228.04,239.07125183]
[1734464864278,9.14202565,228.16,228.03,179.71057272]
[1734464864581,2.1919,228.1,228.04,4.5924]
[1734464864774,2.4,228.15,228.04,2.4]
[1734464865083,2.4,228.15,228.03,3.0982]
[1734464865274,2.4,228.15,228.03,5.4982]
[1734464865474,2.4,228.15,228.03,10.64956687]
[1734464866176,9.14202565,228.16,228.03,10.64956687]
[1734464866681,9.14202565,228.16,228.03,10.49136687]
[1734464867381,2.1917,228.13,228.03,10.49136687]
[1734464867778,2.1917,228.13,228.06,2.1922]
[1734464868483,2.1917,228.13,228.07,2.1921]
[1734464868781,2.1917,228.13,228.03,10.49136687]
[1734464869683,9.14202565,228.16,228.08,2.1921]
[1734464869877,2.1915,228.14,228.08,2.1921]
[1734464871981,2.1916,228.13,228.08,2.1921]
[1734464873486,2.1915,228.15,228.1,2.1918]
[1734464873985,8.04074912,228.15,228.1,2.1918]
[1734464875082,5.84924912,228.13,228.08,2.4]
[1734464875280,5.84924912,228.13,228.06,2.4]
[1734464875486,5.84924912,228.11,228.03,190.83396553]
[1734464875689,2.192,228.09,228.03,185.68259866]
[1734464875885,2.192,228.09,228.03,5.34]
[1734464876386,5.33198121,228.23,227.99,407.03439594]
[1734464876387,5.84924912,228.04,227.99,5.32074913]
[1734464876581,5.84924912,228.01,227.98,1.477]
[1734464876782,8.04174912,228.03,227.98,1.477]
[1734464877083,5.84924912,228.04,227.98,1.477]
[1734464877279,2.1927,228.01,227.98,1.477]
[1734464877484,2.60585992,228.0,227.98,1.477]
[1734464877687,2.60585992,227.99,227.98,1.477]
[1734464878587,2.1923,228.06,227.98,1.477]
[1734464878782,2.60452218,228.05,227.99,2.4]
[1734464878981,2.60452218,228.04,228.0,2.1928]
[1734464879185,2.60452218,228.03,227.99,2.4]
[1734464879489,2.60452218,228.02,227.99,2.4]
[1734464879686,2.1922,228.07,228.01,2.1927]
[1734464879990,2.60395838,228.06,227.98,1.477]
[1734464880185,2.60395838,228.05,227.98,1.477]
[1734464880387,2.60395838,228.04,227.98,1.477]
[1734464880589,2.60395838,228.03,227.98,1.477]
[1734464880887,2.60389918,228.02,228.0,2.1927]
[1734464881088,9.14862041,228.1,228.0,2.1927]
[1734464881291,2.60393785,228.09,228.0,2.1927]
[1734464881589,2.60393785,228.08,228.0,2.1927]
[1734464881786,9.14862041,228.1,228.0,2.1927]
[1734464881991,2.60350269,228.09,228.0,2.1927]
[1734464882189,2.60350269,228.08,227.98,3.877]
[1734464882494,9.14862041,228.1,227.99,2.1929]
[1734464882495,2.1923,228.06,227.99,2.1929]
[1734464882691,2.60336169,228.05,227.99,2.1929]
[1734464882988,2.60336169,228.04,228.03,2.1925]
[1734464883198,9.14862041,228.13,228.0,9.14862041]
[1734464883493,2.1917,228.12,228.05,2.1923]
[1734464883699,2.1917,228.12,228.05,2.4]
[1734464883890,9.14862041,228.16,228.05,2.4]
[1734464884087,11.54862041,228.19,228.05,2.4]
[1734464884293,9.14862041,228.19,228.06,10.56002041]
[1734464884495,11.33962041,228.19,228.11,2.1917]
[1734464885795,11.33962041,228.19,228.12,2.1916]
[1734464885997,9.14862041,228.19,228.1,2.4]
[1734464887091,11.33962041,228.19,228.13,2.1916]
[1734464887890,9.14862041,228.19,228.1,2.4]
[1734464888095,2.1912,228.17,228.11,2.1918]
[1734464888395,9.14862041,228.19,228.1,2.4]
[1734464888594,2.1914,228.16,228.1,2.4]
[1734464888796,9.14862041,228.19,228.1,2.4]
[1734464889195,2.1913,228.17,228.1,2.4]
[1734464889395,9.14862041,228.19,228.1,2.4]
[1734464889603,9.14862041,228.19,228.08,2.4]
[1734464890703,2.1913,228.17,228.1,2.1919]
[1734464890902,9.14862041,228.19,228.08,2.4]
[1734464892397,2.1913,228.16,228.08,4.592]
[1734464892703,9.14862041,228.19,228.08,4.592]
[1734464893103,2.1915,228.15,228.08,2.192]
[1734464893502,9.14862041,228.19,228.07,10.64024966]
[1734464893503,9.14862041,228.22,228.09,9.14862041]
[1734464893706,11.62862041,228.25,228.09,9.14862041]
[1734464893909,9.14862041,228.25,228.09,9.14862041]
[1734464894206,9.14862041,228.22,228.08,407.03439594]
[1734464894402,9.14862041,228.22,228.07,10.64024966]
[1734464894602,14.3275068,228.25,228.08,2.48]
[1734464894603,9.14862041,228.19,228.08,2.48]
[1734464895006,9.14862041,228.16,228.07,2.9937]
[1734464895202,2.1918,228.11,228.07,2.9937]
[1734464895396,9.14862041,228.16,228.07,1.4552]
[1734464895601,9.14862041,228.16,228.04,2.48]
[1734464895802,2.1921,228.08,228.02,4.6726]
[1734464896102,9.14862041,228.13,228.02,2.48]
[1734464896506,2.192,228.09,228.02,4.6726]
[1734464896706,9.14862041,228.13,228.02,2.48]
[1734464898198,9.14862041,228.16,228.02,11.62862041]
[1734464899400,2.1917,228.12,228.05,2.1923]
[1734464899904,9.14862041,228.16,228.02,429.04088744]
[1734464900100,9.14862041,228.16,228.08,2.192]
[1734464900606,2.1914,228.15,228.08,2.192]
[1734464900807,10.56602041,228.19,228.07,2.5]
[1734464901008,7.67888639,228.25,228.08,9.14862041]
[1734464901209,2.1909,228.2,228.08,10.58772041]
[1734464901410,9.14862041,228.24,228.14,2.1914]
[1734464901604,9.14862041,228.24,228.13,2.5]
[1734464901804,2.1909,228.21,228.13,2.5]
[1734464902108,9.14862041,228.18,228.09,2.48]
[1734464902408,9.14862041,228.15,228.09,2.48]
[1734464902607,9.14862041,228.15,228.08,181.48359437]
[1734464902806,9.14862041,228.15,228.06,2.1922]
[1734464902807,2.1917,228.13,228.06,2.1922]
[1734464903406,9.14862041,228.18,228.05,2.48]
[1734464904313,2.1913,228.16,228.05,2.48]
[1734464905514,2.1913,228.16,228.09,2.1919]
[1734464905811,2.1913,228.16,228.05,11.62862041]
[1734464906011,9.14862041,228.18,228.11,2.1918]
[1734464906311,9.14862041,228.18,228.05,11.62862041]
[1734464906613,2.48,228.2,228.05,11.62862041]
[1734464906804,9.14862041,228.21,228.08,9.14862041]
[1734464907008,11.62862041,228.24,228.08,9.14862041]
[1734464907912,2.1909,228.2,228.08,426.56088744]
[1734464908413,2.1908,228.22,228.17,2.1912]
[1734464908609,11.62862041,228.24,228.15,2.48]
[1734464909015,2.1907,228.23,228.17,2.1911]
[1734464910613,9.14862041,228.24,228.13,1.4342]
[1734464911016,2.191,228.2,228.13,3.6257]
[1734464911912,2.191,228.2,228.14,2.1915]
[1734464912417,9.14862041,228.24,228.13,1.4342]
[1734464913510,2.1908,228.21,228.15,2.1914]
[1734464915014,2.1909,228.2,228.14,2.1915]
[1734464919721,2.1909,228.2,228.15,2.1914]
[1734464919917,2.1909,228.2,228.13,6.72776026]
[1734464921521,2.1909,228.2,228.14,2.1914]
[1734464921926,9.14862041,228.21,228.12,1.4687]
[1734464923118,2.1913,228.17,228.12,1.4687]
[1734464923314,2.1913,228.17,228.11,2.1918]
[1734464923920,2.1913,228.17,228.11,7.52588663]
[1734464925321,9.14862041,228.21,228.11,7.52588663]
[1734464925518,9.14862041,228.24,228.15,2.1914]
[1734464925718,9.14862041,228.24,228.11,5.33408663]
[1734464925918,2.1909,228.21,228.11,5.33408663]
[1734464926123,2.1909,228.21,228.14,2.1914]
[1734464927817,2.1909,228.21,228.14,4.6914]
[1734464928026,14.42194584,228.27,228.14,2.5]
[1734464928216,9.14862041,228.24,228.14,2.5]
[1734464928416,5.27332543,228.27,228.11,186.817681]
[1734464928417,9.14862041,228.21,228.11,7.83408663]
[1734464929825,9.14862041,228.21,228.11,10.02588663]
[1734464930328,2.1912,228.17,228.11,10.02588663]
[1734464931029,2.1911,228.18,228.12,2.1917]
[1734464932321,9.14862041,228.21,228.09,598.60034881]
[1734464932524,9.14862041,228.18,228.08,2.192]
[1734464933532,2.1916,228.14,228.08,2.192]
[1734464933925,2.1916,228.14,228.09,2.1919]
[1734464934429,2.60673357,228.13,228.08,5.29004518]
[1734464934630,2.60673357,228.12,228.08,7.48204518]
[1734464934828,2.60673357,228.11,228.08,7.48204518]
[1734464935032,2.60673357,228.1,228.08,7.48204518]
[1734464935233,2.60673357,228.09,228.08,7.48204518]
[1734464935634,2.60673357,228.09,228.06,7.6948]
[1734464935831,2.60673357,228.08,228.06,3.9688]
[1734464936135,4.79893357,228.07,228.06,3.9688]
[1734464936328,4.79893357,228.07,228.06,1.4688]
[1734464936922,2.1921,228.08,228.06,1.4688]
[1734464937128,2.60682811,228.07,228.06,1.4688]
[1734464937933,2.1923,228.06,228.03,780.08394318]
[1734464938133,2.60682811,228.05,228.03,181.48359437]
[1734464938427,2.60682811,228.04,228.02,780.08394318]
[1734464938629,9.14862041,228.15,228.03,2.1925]
[1734464938833,2.60662962,228.14,228.03,2.1925]
[1734464939133,2.60662962,228.13,228.03,2.5]
[1734464939430,2.1921,228.08,228.04,2.1924]
[1734464939631,2.60662962,228.07,228.04,2.1924]
[1734464939833,2.1921,228.08,228.04,2.1924]
[1734464940034,2.60637569,228.07,228.04,2.1924]